[Event "25th Zadar Open 2018"]
[Site "Zadar"]
[Date "2018.12.20"]
[Round "7.25"]
[White "Blagojevic, Tijana"]
[Black "Samani, Yamac"]
[Result "1/2-1/2"]
[ECO "C11"]
[WhiteElo "2208"]
[BlackElo "2267"]
[Annotator "NA"]
[PlyCount "69"]
[EventDate "2018.12.15"]
[EventType "swiss"]
[EventCountry "CRO"]
[SourceTitle "playchess.com"]
[Source "ChessBase"]
[SourceQuality "1"]
[TimeControl "40/5400+30:1800+30"]

1. e4 {[%emt 0:00:30]} e6 {[%emt 0:00:30]} 2. Nf3 {[%emt 0:00:00]} d5 {[%emt 0:02:30]} 3. Nc3 {[%emt 0:00:00]} Nf6 {[%emt 0:00:30]} 4. e5 {[%emt 0:00:30]} Nfd7 {[%emt 0:00:30]} 5. Ne2 {[%emt 0:00:30]} c5 {[%emt 0:04:30]} 6. c3 {[%emt 0:00:00]} Nc6 {[%emt 0:03:30]} 7. d4 {[%emt 0:03:00]} Be7 {[%emt 0:02:30]} 8. Nf4 {[%emt 0:00:30] C11: French: Classical System: 4 e5 and 4 Bg5 dxe4} Qa5 {[%emt 0:04:30]} 9. a3 {[%emt 0:03:30]} c4 $146 {[%emt 0:05:30]} ({Predecessor:} 9... cxd4 10. b4 Qd8 11. cxd4 Nb6 12. Bd3 a6 13. Qc2 h6 14. Nh5 Kf8 15. Be3 Bd7 {1-0 (39) Fedorchuk,S (2666)-Tratar,M (2494) Warsaw 2013}) 10. h4 {[%emt 0:00:30]} b5 {[%emt 0:03:30]} 11. Bd2 {[%emt 0:03:30]} h6 {[%emt 0:02:30]} 12. b4 {[%emt 0:11:30]} Qa4 {[%emt 0:05:30]} 13. Qxa4 {[%emt 0:02:30]} bxa4 {[%emt 0:00:30]} 14. Be2 {[%emt 0:00:30]} Nb6 {[%emt 0:08:30]} 15. Bd1 {[%emt 0:00:30]} Bd7 {[%emt 0:02:30]} 16. Bc2 {[%emt 0:00:30]} O-O-O {[%emt 0:05:30]} 17. Ke2 {[%emt 0:06:30]} g6 {[%emt 0:07:30]} 18. Rag1 {[%emt 0:03:30]} Kc7 {[%emt 0:02:30]} 19. g4 {[%emt 0:06:30]} a5 {[%emt 0:02:30]} 20. Kd1 {[%emt 0:08:30]} axb4 {[%emt 0:00:30]} 21. axb4 {[%emt 0:02:30]} Ra8 {[%emt 0:01:30]} 22. Bb1 {[%emt 0:01:30]} a3 {[%emt 0:01:30]} 23. Ba2 {[%emt 0:00:00]} Na7 {[%emt 0:01:30]} 24. Kc1 {[%emt 0:00:00]} Ba4 {[%emt 0:04:30]} 25. Kb1 {[%emt 0:00:30]} Nb5 {[%emt 0:00:30]} 26. Ne2 $17 {[%emt 0:00:30]} Bb3 {[%emt 0:02:30]} 27. Rg3 {[%emt 0:12:30]} Na4 {[%emt 0:03:30]} 28. h5 {[%emt 0:09:30]} g5 {[%emt 0:01:30]} 29. Nh2 {[%emt 0:01:30]} Nb2 {[%emt 0:03:56]} 30. Nc1 {[%emt 0:00:30]} Bd1 {[%emt 0:02:04]} 31. Rf1 {[%emt 0:00:30]} Kd7 {[%emt 0:10:26]} 32. Ka1 {[%emt 0:00:30]} Kc7 {[%emt 0:00:04]} 33. Kb1 {[%emt 0:00:00]} Kd7 {[%emt 0:00:01]} 34. Ka1 {[%emt 0:00:00]} Kc7 {[%emt 0:00:06]} 35. Kb1 {[%emt 0:00:00]} 1/2-1/2

[Event "25th Zadar Open 2018"]
[Site "Zadar"]
[Date "2018.12.20"]
[Round "7.26"]
[White "Chan, Kim Yew"]
[Black "Cebalo, Miso"]
[Result "1/2-1/2"]
[ECO "A31"]
[WhiteElo "2175"]
[BlackElo "2262"]
[Annotator "NA"]
[PlyCount "62"]
[EventDate "2018.12.15"]
[EventType "swiss"]
[EventCountry "CRO"]
[SourceTitle "playchess.com"]
[Source "ChessBase"]
[SourceQuality "1"]
[TimeControl "40/5400+30:1800+30"]

1. Nf3 {[%emt 0:00:30]} Nf6 {[%emt 0:00:30]} 2. c4 {[%emt 0:00:00]} c5 {[%emt 0:00:30]} 3. g3 {[%emt 0:00:00]} g6 {[%emt 0:00:30]} 4. Bg2 {[%emt 0:00:00]} Bg7 {[%emt 0:00:30]} 5. Nc3 {[%emt 0:00:00]} Nc6 {[%emt 0:00:00]} 6. O-O {[%emt 0:00:30]} d6 {[%emt 0:00:00]} 7. d4 {[%emt 0:00:30]} cxd4 {[%emt 0:01:30] LiveBook: 225 Games} 8. Nxd4 {[%emt 0:00:30]} Bd7 {[%emt 0:00:00]} 9. Nc2 {[%emt 0:00:00]} h5 {[%emt 0:01:00] A31: Symmetrical English: 2 Nf3 Nf6 3 d4} 10. h4 {[%emt 0:01:00]} Rc8 {[%emt 0:00:30]} (10... Qc8 11. b3 Bh3 12. Bb2 O-O 13. Ne3 Bxg2 14. Kxg2 Re8 15. Qd2 Ne5 16. Rac1 b6 17. Ncd5 {0-1 (51) Meier,G (2639)-Le,Q (2715) chess.com INT 2018}) 11. b3 {[%emt 0:00:30]} O-O {[%emt 0:00:00]} 12. Bb2 {[%emt 0:01:30]} Ng4 {[%emt 0:01:00]} 13. Rb1 {[%emt 0:14:30] [#]} Be6 $146 {[%emt 0:06:30]} ({Predecessor:} 13... Qa5 14. Nd5 Bxb2 15. Rxb2 Be6 16. Nf4 Bf5 17. Bd5 {½-½ (25) Nyvlt,Z (2430)-Voiculescu,C (2525) ICCF email 2012}) 14. Nd5 {[%emt 0:05:30]} Bxd5 {[%emt 0:05:30]} 15. Qxd5 {[%emt 0:03:30]} Bxb2 {[%emt 0:02:30]} 16. Rxb2 {[%emt 0:00:30]} e6 {[%emt 0:01:30]} 17. Qd2 {[%emt 0:02:30]} Qf6 {[%emt 0:00:00]} 18. Rbb1 {[%emt 0:01:30]} Rfd8 {[%emt 0:01:00]} 19. Rbd1 {[%emt 0:16:30]} Kg7 {[%emt 0:05:30]} 20. e3 {[%emt 0:04:30]} b6 {[%emt 0:07:30]} 21. Qe2 {[%emt 0:06:30]} Ne7 {[%emt 0:05:30]} 22. Rd2 {[%emt 0:01:30]} Rc7 {[%emt 0:00:30]} 23. Rfd1 {[%emt 0:00:00]} Rcd7 {[%emt 0:00:30]} 24. Nb4 {[%emt 0:05:00]} ({White should try} 24. f3 $16 Nh6 25. e4) 24... Ne5 {[%emt 0:08:30]} 25. Nd3 {[%emt 0:07:30]} d5 $11 {[%emt 0:06:30]} 26. Nxe5 {[%emt 0:05:30]} Qxe5 {[%emt 0:01:30]} 27. cxd5 {[%emt 0:08:17]} Nxd5 {[%emt 0:01:30]} 28. Bxd5 {[%emt 0:00:12]} Rxd5 {[%emt 0:00:00]} 29. Rxd5 {[%emt 0:00:13]} Rxd5 {[%emt 0:00:00]} 30. Rxd5 {[%emt 0:00:18]} Qxd5 {[%emt 0:00:30]} 31. Qb2+ {[%emt 0:00:05]} e5 {[%emt 0:02:30]} 1/2-1/2

[Event "25th Zadar Open 2018"]
[Site "Zadar"]
[Date "2018.12.20"]
[Round "7.27"]
[White "Zelic, Mladen"]
[Black "Jeet, Jain"]
[Result "0-1"]
[ECO "C36"]
[WhiteElo "2274"]
[BlackElo "2212"]
[Annotator "NA"]
[PlyCount "68"]
[EventDate "2018.12.15"]
[EventType "swiss"]
[EventCountry "CRO"]
[SourceTitle "playchess.com"]
[Source "ChessBase"]
[SourceQuality "1"]
[TimeControl "40/5400+30:1800+30"]

1. e4 {[%emt 0:00:30]} e5 {[%emt 0:00:30]} 2. f4 {[%emt 0:00:00]} exf4 {[%emt 0:00:30]} 3. Nf3 {[%emt 0:00:00]} Nf6 {[%emt 0:00:00]} 4. Nc3 {[%emt 0:01:30]} d5 {[%emt 0:00:00]} 5. exd5 {[%emt 0:00:30]} Nxd5 {[%emt 0:00:30]} 6. Nxd5 {[%emt 0:00:30]} Qxd5 {[%emt 0:00:00]} 7. d4 {[%emt 0:00:00]} Be7 {[%emt 0:01:00] LiveBook: 16 Games} 8. Bd3 {[%emt 0:00:00]} Qe6+ {[%emt 0:14:30]} 9. Kf2 {[%emt 0:09:30]} Qf6 {[%emt 0:01:30]} 10. Re1 {[%emt 0:03:30]} Bg4 {[%emt 0:02:30]} 11. c3 {[%emt 0:14:30]} O-O {[%emt 0:02:30]} 12. Kf1 {[%emt 0:34:30]} Nc6 {[%emt 0:01:30]} 13. b3 {[%emt 0:11:49]} Bd6 {[%emt 0:01:30]} 14. Bb2 {[%emt 0:00:11]} Ne7 {[%emt 0:11:30]} 15. c4 $17 {[%emt 0:04:21]} c6 {[%emt 0:04:30]} 16. Qd2 {[%emt 0:04:32]} Bxf3 {[%emt 0:06:30]} 17. gxf3 {[%emt 0:00:09]} Nf5 {[%emt 0:01:30]} 18. Bxf5 {[%emt 0:01:26]} Qxf5 {[%emt 0:00:00]} 19. Re4 {[%emt 0:00:09]} Rae8 {[%emt 0:01:00]} 20. Rae1 {[%emt 0:00:07]} Re6 {[%emt 0:00:30]} 21. c5 {[%emt 0:09:51]} Bc7 {[%emt 0:02:30]} 22. Rxe6 {[%emt 0:01:14]} fxe6 {[%emt 0:00:00]} 23. Re2 {[%emt 0:01:59]} Qh3+ {[%emt 0:01:00]} 24. Rg2 {[%emt 0:00:26]} Qxf3+ {[%emt 0:00:30]} 25. Kg1 {[%emt 0:00:20]} e5 {[%emt 0:00:30]} 26. Rf2 {[%emt 0:00:25]} Qe4 {[%emt 0:03:30]} 27. Re2 {[%emt 0:00:43]} Qg6+ {[%emt 0:00:30]} 28. Rg2 {[%emt 0:00:25]} Qb1+ {[%emt 0:00:30]} 29. Kf2 {[%emt 0:00:02]} e4 {[%emt 0:00:30]} 30. Rxg7+ {[%emt 0:00:57]} Kxg7 {[%emt 0:00:30]} 31. d5+ {[%emt 0:00:01]} Kg6 {[%emt 0:02:30]} 32. Qc3 {[%emt 0:00:20]} e3+ {[%emt 0:00:30]} 33. Ke2 {[%emt 0:00:37]} f3+ {[%emt 0:00:00]} 34. Kxe3 {[%emt 0:00:15]} Re8+ {[%emt 0:00:00]} 0-1

[Event "25th Zadar Open 2018"]
[Site "Zadar"]
[Date "2018.12.21"]
[Round "8.1"]
[White "Rakesh Kumar Jena"]
[Black "Omelja, Artem"]
[Result "1/2-1/2"]
[ECO "D02"]
[WhiteElo "2398"]
[BlackElo "2457"]
[Annotator "ChessBase"]
[PlyCount "39"]
[EventDate "2018.12.15"]
[EventType "swiss"]
[EventCountry "CRO"]
[SourceTitle "playchess.com"]
[Source "ChessBase"]
[SourceQuality "1"]
[TimeControl "40/5400+30:1800+30"]

1. d4 {[%emt 0:00:30]} Nf6 {[%emt 0:00:30]} 2. Bf4 {[%emt 0:00:00]} e6 {[%emt 0:00:30]} 3. e3 {[%emt 0:00:00]} d5 {[%emt 0:00:30]} 4. Nf3 {[%emt 0:00:30]} Bd6 {[%emt 0:00:30]} 5. Bg3 {[%emt 0:00:30]} O-O {[%emt 0:00:30]} 6. Nbd2 {[%emt 0:00:30]} c5 {[%emt 0:01:30]} 7. c3 {[%emt 0:00:30]} Qc7 {[%emt 0:00:30]} 8. Bd3 {[%emt 0:17:30]} Nbd7 {[%emt 0:00:30]} 9. Qe2 {[%emt 0:02:30]} e5 {[%emt 0:02:30]} 10. dxe5 {[%emt 0:00:30]} Nxe5 {[%emt 0:00:30]} 11. Nxe5 {[%emt 0:00:00]} Bxe5 {[%emt 0:00:00]} 12. O-O-O {[%emt 0:02:00]} Re8 {[%emt 0:13:00]} 13. Nf3 {[%emt 0:10:30]} Bg4 {[%emt 0:08:30]} 14. Qc2 {[%emt 0:01:30]} Bxg3 {[%emt 0:03:30]} 15. hxg3 {[%emt 0:00:30]} h6 {[%emt 0:00:30]} 16. Kb1 {[%emt 0:07:30]} Rad8 {[%emt 0:01:30]} 17. Rh4 {[%emt 0:01:30]} Qc8 {[%emt 0:05:30]} 18. Ka1 {[%emt 0:34:42]} Qe6 {[%emt 0:02:30]} 19. Rdh1 {[%emt 0:03:03]} c4 {[%emt 0:22:30]} 20. Be2 {[%emt 0:00:27]} 1/2-1/2

[Event "25th Zadar Open 2018"]
[Site "Zadar"]
[Date "2018.12.21"]
[Round "8.5"]
[White "Cvitan, Ognjen"]
[Black "Salimova, Nurgyul"]
[Result "1/2-1/2"]
[ECO "D45"]
[WhiteElo "2503"]
[BlackElo "2377"]
[Annotator "ChessBase"]
[PlyCount "48"]
[EventDate "2018.12.15"]
[EventType "swiss"]
[EventCountry "CRO"]
[SourceTitle "playchess.com"]
[Source "ChessBase"]
[SourceQuality "1"]
[TimeControl "40/5400+30:1800+30"]

1. Nf3 {[%emt 0:00:30]} d5 {[%emt 0:00:30]} 2. d4 {[%emt 0:00:30]} Nf6 {[%emt 0:00:30]} 3. c4 {[%emt 0:00:30]} e6 {[%emt 0:00:30]} 4. Nc3 {[%emt 0:01:30]} c6 {[%emt 0:01:30]} 5. e3 {[%emt 0:02:30]} Nbd7 {[%emt 0:00:30]} 6. Qc2 {[%emt 0:00:30]} Bd6 {[%emt 0:00:00]} 7. b3 {[%emt 0:00:30]} O-O {[%emt 0:01:00]} 8. Be2 {[%emt 0:00:30]} b6 {[%emt 0:04:30]} 9. O-O {[%emt 0:01:30]} Bb7 {[%emt 0:00:00]} 10. Bb2 {[%emt 0:01:30]} Rc8 {[%emt 0:01:00]} 11. Rad1 {[%emt 0:04:30]} Qe7 {[%emt 0:04:30]} 12. e4 {[%emt 0:03:30]} dxe4 {[%emt 0:00:30]} 13. Nxe4 {[%emt 0:06:30]} Nxe4 {[%emt 0:05:30]} 14. Qxe4 {[%emt 0:00:30]} Nf6 {[%emt 0:00:00]} 15. Qh4 {[%emt 0:13:30]} c5 {[%emt 0:24:00]} 16. d5 {[%emt 0:07:30]} exd5 {[%emt 0:07:30]} 17. Bxf6 {[%emt 0:01:30]} Qxf6 {[%emt 0:00:30]} 18. Qxf6 {[%emt 0:00:30]} gxf6 {[%emt 0:00:30]} 19. cxd5 {[%emt 0:00:00]} Rfe8 {[%emt 0:01:30]} 20. Bc4 {[%emt 0:01:00]} Rcd8 {[%emt 0:02:30]} 21. g3 {[%emt 0:04:30]} Bc8 {[%emt 0:03:30]} 22. Kg2 {[%emt 0:03:30]} Bg4 {[%emt 0:06:30]} 23. h3 {[%emt 0:01:30]} Bxf3+ {[%emt 0:00:30]} 24. Kxf3 {[%emt 0:00:30]} Re5 {[%emt 0:00:30]} 1/2-1/2

[Event "25th Zadar Open 2018"]
[Site "Zadar"]
[Date "2018.12.21"]
[Round "8.7"]
[White "Plenca, Jadranko"]
[Black "Paszewski, Mateusz"]
[Result "1-0"]
[ECO "B51"]
[WhiteElo "2475"]
[BlackElo "2342"]
[Annotator "ChessBase"]
[PlyCount "95"]
[EventDate "2018.12.15"]
[EventType "swiss"]
[EventCountry "CRO"]
[SourceTitle "playchess.com"]
[Source "ChessBase"]
[SourceQuality "1"]
[TimeControl "40/5400+30:1800+30"]

1. e4 {[%emt 0:01:30]} c5 {[%emt 0:00:30]} 2. Nf3 {[%emt 0:00:30]} d6 {[%emt 0:00:00]} 3. Bb5+ {[%emt 0:00:00]} Nd7 {[%emt 0:00:00]} 4. Ba4 {[%emt 0:01:00]} Ngf6 {[%emt 0:04:30]} 5. O-O {[%emt 0:00:30]} g6 {[%emt 0:00:30]} 6. Re1 {[%emt 0:00:30]} Bg7 {[%emt 0:00:30]} 7. c3 {[%emt 0:00:00]} O-O {[%emt 0:05:30]} 8. d4 {[%emt 0:00:00]} Qc7 {[%emt 0:09:30]} 9. h3 {[%emt 0:04:30]} e6 {[%emt 0:05:30]} 10. Bf4 {[%emt 0:04:30]} Rd8 {[%emt 0:07:30]} 11. Nbd2 {[%emt 0:04:30]} e5 {[%emt 0:05:30]} 12. Bh2 {[%emt 0:02:30]} a6 {[%emt 0:01:30]} 13. Bc2 {[%emt 0:10:30]} b5 {[%emt 0:01:30]} 14. Rc1 {[%emt 0:11:30]} Bb7 {[%emt 0:02:30]} 15. Bb1 {[%emt 0:02:30]} Rac8 {[%emt 0:05:30]} 16. d5 {[%emt 0:03:30]} c4 {[%emt 0:05:30]} 17. Nf1 {[%emt 0:02:30]} Nc5 {[%emt 0:01:30]} 18. Qd2 {[%emt 0:00:30]} Qe7 {[%emt 0:05:30]} 19. Kh1 {[%emt 0:00:30]} a5 {[%emt 0:03:30]} 20. g4 {[%emt 0:11:30]} Ba6 {[%emt 0:01:30]} 21. Bg3 {[%emt 0:01:30]} Rb8 {[%emt 0:02:30]} 22. Bh4 {[%emt 0:01:30]} Rdc8 {[%emt 0:02:30]} 23. Ng3 {[%emt 0:03:30]} b4 {[%emt 0:01:30]} 24. Bg5 {[%emt 0:07:30]} bxc3 {[%emt 0:02:30]} 25. bxc3 {[%emt 0:01:30]} Qf8 {[%emt 0:02:30]} 26. Rg1 {[%emt 0:03:30]} Rc7 {[%emt 0:02:30]} 27. Be3 {[%emt 0:04:44]} Kh8 {[%emt 0:04:12]} 28. Bc2 {[%emt 0:05:17]} Rb2 {[%emt 0:03:46]} 29. Qd1 {[%emt 0:00:04]} Rxa2 {[%emt 0:03:19]} 30. Ra1 {[%emt 0:00:06]} Rxa1 {[%emt 0:01:45]} 31. Qxa1 {[%emt 0:00:04]} Nb3 {[%emt 0:01:19]} 32. Qa3 {[%emt 0:02:07]} Nd7 {[%emt 0:03:02]} 33. Nd2 {[%emt 0:01:55]} Ndc5 {[%emt 0:02:38]} 34. Bxb3 {[%emt 0:01:45]} cxb3 {[%emt 0:00:33]} 35. Nxb3 {[%emt 0:00:15]} Nxb3 {[%emt 0:01:08]} 36. Qxb3 {[%emt 0:00:05]} Qc8 {[%emt 0:00:26]} 37. Rc1 {[%emt 0:01:37]} h5 {[%emt 0:02:16]} 38. gxh5 {[%emt 0:01:43]} Qxh3+ {[%emt 0:01:37]} 39. Kg1 {[%emt 0:00:03]} gxh5 {[%emt 0:00:40]} 40. Qb6 {[%emt 0:00:00]} h4 {[%emt 0:00:00]} 41. Nf5 {[%emt 0:08:45]} Rc8 {[%emt 0:07:49]} 42. Nxd6 {[%emt 0:12:21]} Be2 {[%emt 0:13:58]} 43. Nxf7+ {[%emt 0:00:16]} Kg8 {[%emt 0:00:02]} 44. Ng5 {[%emt 0:00:38]} Qd7 {[%emt 0:00:15]} 45. Qg6 {[%emt 0:01:26]} Bg4 {[%emt 0:01:31]} 46. f3 {[%emt 0:00:25]} Bh3 {[%emt 0:00:21]} 47. Qh7+ {[%emt 0:00:13]} Kf8 {[%emt 0:00:02]} 48. Qxh4 {[%emt 0:00:07]} 1-0

[Event "25th Zadar Open 2018"]
[Site "Zadar"]
[Date "2018.12.21"]
[Round "8.9"]
[White "Dixit, Nikhil"]
[Black "Loncar, Robert"]
[Result "1/2-1/2"]
[ECO "B40"]
[WhiteElo "2292"]
[BlackElo "2397"]
[Annotator "NA"]
[PlyCount "62"]
[EventDate "2018.12.15"]
[EventType "swiss"]
[EventCountry "CRO"]
[SourceTitle "playchess.com"]
[Source "ChessBase"]
[SourceQuality "1"]
[TimeControl "40/5400+30:1800+30"]

1. e4 {[%emt 0:00:30]} c5 {[%emt 0:02:30]} 2. Nf3 {[%emt 0:00:00]} e6 {[%emt 0:00:00]} 3. b3 {[%emt 0:00:00]} Ne7 {[%emt 0:00:00] B40: Sicilian: 2...e6, Unusual lines} (3... d6 4. Bb2 Bd7 5. d4 cxd4 6. Nxd4 Nf6 7. Bd3 Na6 8. c4 Be7 9. Nc3 O-O 10. O-O Nb4 11. Be2 a6 {1-0 (57) Antipov,M (2593)-Dubov,D (2703) Sochi 2018}) 4. Bb2 {[%emt 0:00:30]} a6 {[%emt 0:00:30]} 5. d4 {[%emt 0:00:30]} cxd4 {[%emt 0:00:30]} 6. Nxd4 {[%emt 0:00:30]} d5 $146 {[%emt 0:02:30]} ({Predecessor:} 6... Nbc6 7. Be2 Nxd4 8. Bxd4 Nc6 9. Bb2 Bc5 10. O-O O-O 11. c4 {1-0 (30) Huhnstock,R (1876)-Schuffenhauer,R (1633) Bingen 2008}) 7. exd5 {[%emt 0:06:30]} Nxd5 {[%emt 0:09:30]} 8. Be2 {[%emt 0:03:30]} Bb4+ {[%emt 0:02:30]} 9. c3 {[%emt 0:00:30]} Bd6 {[%emt 0:10:30]} 10. O-O {[%emt 0:04:30]} Qc7 {[%emt 0:00:30]} 11. g3 {[%emt 0:01:30]} O-O {[%emt 0:02:30]} 12. c4 {[%emt 0:04:30]} Nf6 {[%emt 0:00:30]} 13. Nc3 {[%emt 0:02:30]} Rd8 {[%emt 0:06:30]} 14. Qc2 {[%emt 0:01:30]} Bc5 {[%emt 0:08:30]} 15. Nf3 {[%emt 0:00:30]} Nbd7 {[%emt 0:04:30]} 16. Ne4 {[%emt 0:04:30]} Be7 {[%emt 0:02:30]} 17. Rad1 {[%emt 0:06:30]} b6 {[%emt 0:07:30]} 18. Nxf6+ {[%emt 0:12:30]} Bxf6 {[%emt 0:01:30]} 19. Bxf6 {[%emt 0:01:30]} gxf6 {[%emt 0:10:30]} 20. Qc1 {[%emt 0:09:30]} Bb7 {[%emt 0:05:30]} 21. Qh6 {[%emt 0:01:30]} Qc6 {[%emt 0:05:50]} 22. Rd4 {[%emt 0:05:30]} Ne5 {[%emt 0:00:03]} 23. Rxd8+ $11 {[%emt 0:02:30]} Rxd8 {[%emt 0:01:10]} 24. Qxf6 {[%emt 0:00:30]} Nxf3+ {[%emt 0:03:10]} 25. Bxf3 {[%emt 0:01:30]} Qxf3 {[%emt 0:00:03]} 26. Qxd8+ {[%emt 0:00:00]} Kg7 {[%emt 0:00:04]} 27. Qg5+ {[%emt 0:01:00]} Kf8 {[%emt 0:00:43]} 28. Qd8+ {[%emt 0:00:00]} Kg7 {[%emt 0:00:10]} 29. Qg5+ {[%emt 0:00:00]} Kf8 {[%emt 0:00:07]} 30. Qd8+ {[%emt 0:00:30]} Kg7 {[%emt 0:00:02]} 31. Qg5+ {[%emt 0:00:00]} Kf8 {[%emt 0:00:58]} 1/2-1/2

[Event "25th Zadar Open 2018"]
[Site "Zadar"]
[Date "2018.12.21"]
[Round "8.10"]
[White "Sutkovic, Damir"]
[Black "Saric, Ibro"]
[Result "0-1"]
[ECO "E20"]
[WhiteElo "2345"]
[BlackElo "2559"]
[Annotator "RC"]
[PlyCount "74"]
[EventDate "2018.12.15"]
[EventType "swiss"]
[EventCountry "CRO"]
[SourceTitle "playchess.com"]
[Source "ChessBase"]
[SourceQuality "1"]
[TimeControl "40/5400+30:1800+30"]

1. d4 {[%emt 0:00:30]} Nf6 {[%emt 0:00:30]} 2. c4 {[%emt 0:00:00]} e6 {[%emt 0:00:30]} 3. Nc3 {[%emt 0:00:00]} Bb4 {[%emt 0:00:00]} 4. f3 {[%emt 0:00:00]} Nc6 {[%emt 0:01:00]} 5. e4 {[%emt 0:01:00]} d5 {[%emt 0:00:30]} 6. cxd5 {[%emt 0:00:30]} exd5 {[%emt 0:00:30]} 7. e5 {[%emt 0:00:00]} Ng8 {[%emt 0:00:00]} 8. f4 {[%emt 0:00:00]} Nge7 {[%emt 0:01:00]} 9. Be3 {[%emt 0:01:30]} O-O {[%emt 0:07:30]} 10. Nf3 {[%emt 0:00:00]} Bg4 {[%emt 0:02:30]} 11. h3 {[%emt 0:09:00]} Bxf3 {[%emt 0:02:30]} 12. Qxf3 {[%emt 0:00:30]} f6 {[%emt 0:05:30]} 13. exf6 {[%emt 0:12:30]} Nf5 {[%emt 0:01:30]} 14. O-O-O {[%emt 0:01:30]} Bxc3 {[%emt 0:06:30]} 15. bxc3 {[%emt 0:00:30]} Nxe3 {[%emt 0:00:30]} 16. Qxe3 {[%emt 0:02:30]} Rxf6 {[%emt 0:01:30]} 17. Bd3 {[%emt 0:02:30]} Qf8 {[%emt 0:05:30]} 18. Kb1 {[%emt 0:09:30]} Na5 {[%emt 0:07:30]} 19. Rd2 {[%emt 0:05:30]} Rxf4 {[%emt 0:16:30]} 20. Qe5 {[%emt 0:01:30]} Qf7 {[%emt 0:00:30]} 21. Re1 {[%emt 0:00:30]} Nc4 {[%emt 0:07:30]} 22. Bxc4 {[%emt 0:00:30]} dxc4 {[%emt 0:00:00]} 23. Rb2 {[%emt 0:03:30]} b6 {[%emt 0:01:00]} 24. Rb4 {[%emt 0:04:30]} Rf8 {[%emt 0:09:30]} 25. Qe2 {[%emt 0:08:30]} c5 {[%emt 0:14:33]} 26. dxc5 {[%emt 0:07:30]} Qf5+ {[%emt 0:00:06]} 27. Ka1 {[%emt 0:02:30]} Qxc5 {[%emt 0:00:16]} 28. g3 {[%emt 0:00:30]} Rf3 {[%emt 0:02:09]} 29. Qe6+ {[%emt 0:05:30]} Kh8 {[%emt 0:00:33]} 30. Rxc4 {[%emt 0:00:30]} Qf2 {[%emt 0:00:32]} 31. Rc8 {[%emt 0:10:42]} Qxg3 {[%emt 0:01:21]} 32. Re3 {[%emt 0:10:30]} Qg1+ {[%emt 0:00:38]} 33. Kb2 {[%emt 0:00:20]} Rf2+ {[%emt 0:00:57]} 34. Ka3 {[%emt 0:00:39]} Qc1+ {[%emt 0:01:24]} 35. Ka4 {[%emt 0:00:48]} Rxa2+ {[%emt 0:01:53]} 36. Kb5 {[%emt 0:00:34]} Ra5+ {[%emt 0:00:22]} 37. Kc6 {[%emt 0:01:15]} Rc5+ {[%emt 0:00:11]} 0-1

[Event "25th Zadar Open 2018"]
[Site "Zadar"]
[Date "2018.12.21"]
[Round "8.11"]
[White "Nielsen, Rogvi Egilstoft"]
[Black "Martinovic, Sasa"]
[Result "0-1"]
[ECO "B22"]
[WhiteElo "2339"]
[BlackElo "2554"]
[Annotator "ChessBase"]
[PlyCount "98"]
[EventDate "2018.12.15"]
[EventType "swiss"]
[EventCountry "CRO"]
[SourceTitle "playchess.com"]
[Source "ChessBase"]
[SourceQuality "1"]
[TimeControl "40/5400+30:1800+30"]

1. e4 {[%emt 0:00:30]} c5 {[%emt 0:00:30]} 2. c3 {[%emt 0:00:00]} Nf6 {[%emt 0:00:00]} 3. e5 {[%emt 0:00:00]} Nd5 {[%emt 0:00:00]} 4. d4 {[%emt 0:01:30]} cxd4 {[%emt 0:00:00]} 5. cxd4 {[%emt 0:00:30]} d6 {[%emt 0:00:00]} 6. Nf3 {[%emt 0:00:00]} Nc6 {[%emt 0:00:30]} 7. Bc4 {[%emt 0:00:00]} Nb6 {[%emt 0:00:30]} 8. Bb5 {[%emt 0:02:30]} Bd7 {[%emt 0:00:30]} 9. Nc3 {[%emt 0:02:30]} dxe5 {[%emt 0:00:30]} 10. dxe5 {[%emt 0:00:30]} g6 {[%emt 0:00:30]} 11. O-O {[%emt 0:21:30]} Bg7 {[%emt 0:00:00]} 12. Re1 {[%emt 0:06:30]} O-O {[%emt 0:02:00]} 13. h3 {[%emt 0:01:30]} Qc7 {[%emt 0:08:30]} 14. Qe2 {[%emt 0:19:30]} Rad8 {[%emt 0:10:30]} 15. a4 {[%emt 0:04:30]} Be6 {[%emt 0:06:30]} 16. Be3 {[%emt 0:05:30]} Nd5 {[%emt 0:12:30]} 17. Rac1 {[%emt 0:03:30]} Nxe3 {[%emt 0:02:30]} 18. Qxe3 {[%emt 0:02:30]} Qb6 {[%emt 0:00:00]} 19. Qxb6 {[%emt 0:16:29]} axb6 {[%emt 0:00:00]} 20. Ng5 {[%emt 0:00:09]} Bb3 {[%emt 0:04:30]} 21. f4 {[%emt 0:00:15]} Bh6 {[%emt 0:02:30]} 22. g3 {[%emt 0:03:59]} Bxg5 {[%emt 0:10:30]} 23. fxg5 {[%emt 0:00:03]} Rd2 {[%emt 0:00:00]} 24. Ne4 {[%emt 0:03:44]} Rd4 {[%emt 0:01:00]} 25. Nc3 {[%emt 0:01:58]} Rfd8 {[%emt 0:00:30]} 26. Re2 {[%emt 0:00:26]} Rd2 {[%emt 0:07:30]} 27. Rce1 {[%emt 0:01:20]} Kg7 {[%emt 0:00:00]} 28. h4 {[%emt 0:00:54]} R8d4 {[%emt 0:03:00]} 29. Kf1 {[%emt 0:00:20]} Be6 {[%emt 0:00:30]} 30. Rxd2 {[%emt 0:00:47]} Rxd2 {[%emt 0:00:00]} 31. Bxc6 {[%emt 0:00:05]} bxc6 {[%emt 0:00:00]} 32. Rd1 {[%emt 0:00:02]} Rxb2 {[%emt 0:01:30]} 33. Rd8 {[%emt 0:00:15]} f5 {[%emt 0:03:30]} 34. exf6+ {[%emt 0:01:05]} exf6 {[%emt 0:00:30]} 35. Ne4 {[%emt 0:00:29]} fxg5 {[%emt 0:02:30]} 36. hxg5 {[%emt 0:00:17]} Rb4 {[%emt 0:10:07]} 37. Nf6 {[%emt 0:00:36]} Rxa4 {[%emt 0:00:06]} 38. Rd6 {[%emt 0:00:27]} Bh3+ {[%emt 0:00:44]} 39. Kf2 {[%emt 0:01:07]} Rc4 {[%emt 0:00:03]} 40. Rd8 {[%emt 0:00:00]} Rc5 {[%emt 0:00:00]} 41. Ne4 {[%emt 0:04:43]} Re5 {[%emt 0:10:00]} 42. Nd6 {[%emt 0:00:00]} Rxg5 {[%emt 0:05:30]} 43. Rb8 {[%emt 0:00:00]} Rd5 {[%emt 0:02:30]} 44. Rb7+ {[%emt 0:00:30]} Kh6 {[%emt 0:03:30]} 45. Ne4 {[%emt 0:02:30]} b5 {[%emt 0:02:30]} 46. Rc7 {[%emt 0:00:30]} Rf5+ {[%emt 0:01:30]} 47. Kg1 {[%emt 0:01:30]} Rf1+ {[%emt 0:00:30]} 48. Kh2 {[%emt 0:00:30]} Be6 {[%emt 0:00:30]} 49. g4 {[%emt 0:01:30]} Bxg4 {[%emt 0:00:30]} 0-1